bitfinex-derivatives/quotes_SOLF0:USTF0_20251109
["timestamp","ask_amount","ask_price","bid_price","bid_amount"]
[1762717611243,0.03869398,165.27,165.24,0.04446209]
[1762717611445,2.86,165.34,165.25,54.82]
[1762717611637,2.86,165.34,165.22,1.91184319]
[1762717611852,2.86,165.34,165.23,10.48]
[1762717612049,2.86,165.32,165.2,1.91184319]
[1762717612351,2.86,165.32,165.21,15.38]
[1762717612549,2.90157884,165.28,165.24,0.03885232]
[1762717612845,2.9018777,165.28,165.24,0.03844844]
[1762717613849,2.86,165.26,165.24,0.03844844]
[1762717614048,2.86,165.26,165.18,14.32]
[1762717615050,2.86,165.23,165.2,0.03898703]
[1762717615256,2.9059786,165.23,165.2,0.04222675]
[1762717616546,0.0459786,165.23,165.2,0.04222675]
[1762717621759,2.9059786,165.23,165.2,0.04222675]
[1762717623353,5.4485,165.22,165.2,0.04222675]
[1762717623658,3.12,165.21,165.2,0.04222675]
[1762717624756,3.12,165.21,165.04,4.96061392]
[1762717624961,3.12,165.19,165.09,60.84]
[1762717626063,0.04558422,165.16,165.12,0.04050468]
[1762717626759,3.16558422,165.16,165.12,0.04050468]
[1762717627560,3.12,165.32,165.12,0.04050468]
[1762717627756,3.12,165.32,165.09,18.18]
[1762717627961,5.4477,165.25,165.09,18.18]
[1762717628261,3.12,165.24,165.09,18.18]
[1762717628456,0.044894,165.18,165.15,0.04270031]
[1762717628650,0.044894,165.18,165.16,60.84]
[1762717628961,0.044894,165.18,165.16,66.2902]
[1762717629962,0.044894,165.18,165.16,60.84]
[1762717630964,0.044894,165.18,165.16,66.2903]
[1762717631360,0.044894,165.18,165.17,60.84]
[1762717632662,3.164894,165.18,165.15,0.04270031]
[1762717633162,3.164894,165.18,165.11,60.84]
[1762717633163,3.12,165.16,165.11,60.84]
[1762717633467,3.12,165.16,165.09,60.84]
[1762717633863,3.12,165.13,165.09,60.84]
[1762717634169,3.16205867,165.13,165.09,60.88335231]
[1762717635470,3.12,165.12,165.09,0.04335231]
[1762717636171,0.04205867,165.13,165.09,0.04335231]
[1762717636172,3.12,165.11,165.09,0.04335231]
[1762717636857,3.12,165.1,165.02,60.84]
[1762717637261,3.12,165.08,165.02,60.84]
[1762717637860,3.12,165.06,165.03,0.04581313]
[1762717638072,3.16436985,165.06,165.03,0.04259369]
[1762717639162,3.12,165.04,165.03,0.04259369]
[1762717639369,3.12,165.04,164.96,60.86]
[1762717639761,3.12,165.02,164.92,5.4583]
[1762717639968,3.12,165.02,164.92,60.86]
[1762717640366,3.15872461,164.99,164.92,60.86]
[1762717641773,0.03872461,164.99,164.92,60.86]
[1762717642464,0.03872461,164.99,164.91,5.4587]
[1762717642659,0.0434583,164.97,164.93,60.86]
[1762717643166,3.1634583,164.97,164.93,60.86]
[1762717643862,0.0434583,164.97,164.93,60.86]
[1762717645071,0.0434583,164.97,164.93,66.3177]
[1762717650190,3.12,164.96,164.88,5.4595]
[1762717650396,3.15981019,164.94,164.89,60.9]
[1762717650586,0.0465252,164.93,164.89,60.9]
[1762717651495,3.1665252,164.93,164.89,60.9]
[1762717651897,3.1665252,164.93,164.87,77.5]
[1762717652088,3.1665252,164.93,164.88,60.9]
[1762717654899,0.0465252,164.93,164.88,60.9]
[1762717655101,0.0465252,164.93,164.88,63.95952921]
[1762717655301,0.0465252,164.93,164.91,5.4585]
[1762717655603,3.04,165.0,164.92,60.9]
[1762717655789,3.04,165.0,164.88,3.05952921]
[1762717655989,3.04,165.0,164.89,60.9]
[1762717656400,3.04,165.0,164.93,5.4578]
[1762717656700,0.0394594,164.98,164.95,0.04208048]
[1762717656900,3.0794594,164.98,164.95,0.04208048]
[1762717657402,0.0394594,164.98,164.95,0.04208048]
[1762717659104,0.0394594,164.98,164.96,5.4568]
[1762717659503,3.04,165.05,164.95,0.04208048]
[1762717659708,3.04,165.11,164.98,5.4564]
[1762717659904,3.04,165.11,164.99,60.9]
[1762717660401,3.04,165.06,165.03,0.03911907]
[1762717663199,0.04268385,165.07,165.04,60.9]
[1762717663605,3.04,165.06,165.04,60.9]
[1762717663805,0.04268385,165.07,165.04,60.9]
[1762717664006,3.08268385,165.07,165.04,60.9]
[1762717664307,3.08268385,165.07,165.03,0.03911907]
[1762717667308,3.06,165.05,165.03,0.03911907]
[1762717668612,0.04268385,165.07,164.95,60.9]
[1762717668613,3.06,165.04,164.95,60.9]
[1762717669205,3.06,165.02,164.95,60.9]
[1762717669607,3.06,164.99,164.97,0.04593115]
[1762717669807,3.06,164.99,164.96,0.04298094]
[1762717672019,3.10047446,165.0,164.96,0.04298094]
[1762717672914,0.04047446,165.0,164.96,0.04298094]
[1762717674412,0.04047446,165.0,164.98,5.4562]
[1762717674717,3.06,165.08,164.99,60.9]
[1762717675112,3.06,165.08,165.02,5.4549]
[1762717675517,0.04569293,165.07,165.03,0.04546497]
[1762717676114,3.10569293,165.07,165.03,0.04546497]
[1762717681223,0.04569293,165.07,165.03,0.04546497]
[1762717681625,3.10569293,165.07,165.03,60.92546497]
[1762717681823,0.04569293,165.07,165.03,66.38016497]
[1762717682123,3.07569293,165.07,165.03,66.38016497]
[1762717683824,0.04569293,165.07,165.03,66.38016497]
[1762717684023,0.04569293,165.07,165.04,5.4543]
[1762717684728,3.07569293,165.07,165.03,60.92546497]
[1762717686124,3.07569293,165.07,165.03,0.04546497]
[1762717687417,0.04569293,165.07,165.03,5.50006497]
[1762717690231,3.07569293,165.07,165.03,5.50006497]
[1762717690731,0.04569293,165.07,165.04,5.4542]
[1762717690928,0.04569293,165.07,165.03,0.04546497]
[1762717691526,3.03,165.19,165.04,8.56776903]
[1762717691733,3.03,165.19,165.05,5.50823982]
[1762717691938,3.03,165.14,165.05,5.4539]
[1762717692132,3.03,165.14,165.06,60.88]
[1762717692628,3.03,165.11,165.08,0.04309014]
[1762717693129,8.4823,165.11,165.08,0.04309014]
[1762717693322,3.03,165.11,165.08,0.04309014]
[1762717695436,0.04301596,165.12,165.08,0.04309014]
[1762717695735,3.07301596,165.12,165.08,0.04309014]
[1762717697233,0.04301596,165.12,165.08,0.04309014]
[1762717697639,0.04301596,165.12,165.1,5.4523]
[1762717698335,3.03,165.2,165.11,5.4519]
[1762717698529,3.03,165.2,165.12,60.86]
[1762717698736,8.4794,165.2,165.12,60.86]
[1762717698936,3.03,165.19,165.12,60.86]
[1762717699438,0.04619066,165.17,165.14,0.03825879]
[1762717699639,0.04353018,165.17,165.14,0.04018755]
[1762717700338,0.04353018,165.17,165.15,5.4505]
[1762717701124,0.04353018,165.17,165.14,0.04018755]
[1762717701328,0.04353018,165.17,165.15,60.86]
[1762717701635,3.07353018,165.17,165.15,60.86]
[1762717702030,0.04353018,165.17,165.14,0.04018755]
[1762717702434,0.04353018,165.17,165.14,60.90018755]
[1762717703132,3.07353018,165.17,165.14,0.04018755]
[1762717707239,0.04353018,165.17,165.14,0.04018755]
[1762717709742,0.04353018,165.17,165.14,5.49108755]
[1762717709937,0.04353018,165.17,165.14,0.04018755]
[1762717710344,0.04353018,165.17,165.15,5.4505]
[1762717710635,3.03,165.23,165.14,0.04018755]
[1762717711140,3.03,165.23,165.16,5.4503]
[1762717711328,3.03,165.23,165.17,60.84]
[1762717711530,3.03,165.21,165.18,0.04042432]
[1762717711735,3.0718151,165.21,165.18,0.03882049]
[1762717712340,0.0418151,165.21,165.18,0.03882049]
[1762717712840,3.0118151,165.21,165.18,0.03882049]
[1762717713631,0.0418151,165.21,165.18,0.03882049]
[1762717714343,0.0418151,165.21,165.18,5.48852049]
[1762717714941,3.0118151,165.21,165.18,0.03882049]
[1762717715634,0.0418151,165.21,165.18,0.03882049]
[1762717715834,0.0418151,165.21,165.18,5.48852049]
[1762717716441,0.0418151,165.21,165.19,5.4494]
[1762717722547,0.0418151,165.21,165.2,60.82]
[1762717723545,2.97,165.29,165.22,5.4482]
[1762717723754,2.97,165.29,165.2,60.82]
[1762717724055,2.97,165.26,165.2,60.82]
[1762717724443,3.01231694,165.25,165.21,0.04103836]
[1762717725848,3.01231694,165.25,165.22,5.4484]
[1762717730554,3.01231694,165.25,165.21,0.04103836]
[1762717731953,3.01231694,165.25,165.21,5.48973836]
[1762717732150,3.01231694,165.25,165.22,60.82]
[1762717734454,1.05320501,165.34,165.24,10.8953]
[1762717734660,2.99,165.46,165.32,1.90821634]
[1762717734845,12.78771634,165.49,165.33,24.2647]
[1762717734846,2.99,165.42,165.33,24.2647]
[1762717735156,2.99,165.42,165.33,18.82]
[1762717735349,2.99,165.41,165.35,5.444]
[1762717735667,3.03001366,165.4,165.36,0.0445896]
[1762717735847,0.04001366,165.4,165.36,0.0445896]
[1762717736943,3.03001366,165.4,165.36,0.0445896]
[1762717737758,0.04001366,165.4,165.36,5.4881896]
[1762717738254,3.03001366,165.4,165.36,0.0445896]
[1762717741950,8.47281366,165.4,165.36,0.0445896]
[1762717742261,3.15,165.39,165.36,0.0445896]
[1762717745862,3.15,165.38,165.36,0.0445896]
[1762717746962,3.15,165.34,165.32,60.9]
[1762717750562,0.03896247,165.35,165.32,60.9]
[1762717750860,3.18896247,165.35,165.32,62.80821634]
[1762717751866,3.18896247,165.35,165.31,0.04624105]
[1762717752270,8.5952,165.32,165.31,0.04624105]
[1762717754366,3.15,165.32,165.31,0.04624105]
[1762717763763,0.03896247,165.35,165.25,1.21989919]
[1762717763764,3.15,165.3,165.25,1.21989919]
[1762717764475,3.15,165.28,165.22,18.4136303]
[1762717764664,3.19083478,165.27,165.24,1.21989919]
[1762717765967,3.15,165.26,165.23,0.04018004]
[1762717766173,3.15,165.26,165.23,1.26007923]
[1762717766375,3.15,165.26,165.23,0.04018004]
[1762717766870,3.15,165.26,165.19,22.04]
[1762717767066,5.4479,165.24,165.19,1.21989919]
[1762717767266,3.15,165.23,165.19,1.21989919]
[1762717767469,3.15,165.23,165.16,1.21989919]
[1762717767967,3.15,165.2,165.18,0.04220274]
[1762717768173,3.15,165.2,165.17,1.26297953]
[1762717769670,0.04015164,165.21,165.17,1.26297953]
[1762717769971,0.04015164,165.21,165.2,1.21989919]
[1762717772975,3.12015164,165.21,165.2,1.21989919]
[1762717774282,3.12015164,165.21,165.17,0.04308034]
[1762717774575,3.12015164,165.21,165.13,34.98]
[1762717774576,3.08,165.18,165.13,1.21989919]
[1762717775273,3.08,165.17,165.13,1.21989919]
[1762717775671,3.12511995,165.17,165.13,1.26480387]
[1762717776178,3.08,165.16,165.13,1.26480387]
[1762717778177,3.08,165.16,165.13,0.04490468]
[1762717778684,3.08,165.14,165.07,60.8]
[1762717778882,3.08,165.14,165.08,1.21989919]
[1762717779383,3.08,165.11,165.08,1.21989919]
[1762717779680,3.11885409,165.11,165.08,1.26185116]
[1762717780978,3.08,165.1,165.08,1.26185116]
[1762717781171,3.08,165.1,165.08,0.04195197]
[1762717781476,3.08,165.09,165.08,0.04195197]
[1762717783381,3.11885409,165.11,165.08,0.04195197]
[1762717783775,0.03885409,165.11,165.08,0.04195197]
[1762717784682,0.03885409,165.11,165.08,5.49495197]
[1762717786782,0.03885409,165.11,165.09,5.4526]
[1762717787286,0.03885409,165.11,165.1,1.21989919]
[1762717787887,3.11,165.17,165.1,1.21989919]
[1762717788586,3.11,165.18,165.13,1.21989919]
[1762717788976,0.04654637,165.17,165.14,0.04621427]
[1762717789884,0.04654637,165.17,165.14,5.49711427]
[1762717790677,0.04654637,165.17,165.15,5.4506]
[1762717790879,0.04654637,165.17,165.16,1.21989919]
[1762717791780,5.4479,165.24,165.17,5.45]
[1762717792583,8.5584,165.23,165.16,1.21989919]
[1762717792784,3.14993552,165.21,165.18,0.04095759]
[1762717795390,3.11,165.19,165.18,0.04095759]
[1762717797090,8.5599,165.18,165.1,66.2923]
[1762717797995,3.11,165.18,165.1,66.2923]
[1762717798202,0.04518219,165.16,165.12,0.04220159]
[1762717798501,3.15518219,165.16,165.12,0.04220159]
[1762717800699,0.04518219,165.16,165.12,0.04220159]
[1762717801595,0.04518219,165.16,165.12,5.49380159]
[1762717805503,3.07,165.15,165.12,5.49380159]
[1762717806298,0.04518219,165.16,165.14,5.4509]
[1762717807105,5.58933112,165.3,165.19,5.4494]
[1762717807306,3.07,165.29,165.17,5.2]
[1762717807504,3.07,165.29,165.18,23.38]
[1762717807803,3.07,165.29,165.17,60.86]
[1762717808204,3.11603216,165.25,165.21,0.04466291]
[1762717808405,3.11469461,165.25,165.21,0.0457883]
[1762717810108,3.07,165.23,165.21,0.0457883]
[1762717812413,3.07,165.22,165.21,0.0457883]
[1762717820018,3.07,165.2,165.15,1.22156647]
[1762717820521,3.07,165.2,165.15,6.67226647]
[1762717820913,0.03822375,165.19,165.16,0.04545218]
[1762717821724,3.10822375,165.19,165.16,0.04545218]
[1762717822022,0.03822375,165.19,165.16,0.04545218]
[1762717822929,0.03822375,165.19,165.17,5.45]
[1762717824223,3.07,165.3,165.18,1.22]
[1762717824423,3.07,165.3,165.19,1.90845206]
[1762717825122,0.04415587,165.26,165.23,0.04185593]
[1762717825817,3.07,165.33,165.27,5.4468]
[1762717826021,3.07,165.33,165.2,5.48956524]
[1762717826320,3.07,165.32,165.25,5.4473]
[1762717826527,3.07,165.32,165.23,1.90845206]
[1762717826917,0.04553217,165.29,165.26,0.03821119]
[1762717828521,0.04553217,165.29,165.27,5.4468]
[1762717828728,3.07,165.37,165.27,60.94]
[1762717828927,3.07,165.41,165.29,1.90845206]
[1762717829229,8.5127,165.4,165.29,1.90845206]
[1762717829630,0.04251121,165.36,165.33,0.04468758]
[1762717829827,0.04251121,165.36,165.34,5.4443]
[1762717833932,5.4415,165.44,165.33,0.04468758]
[1762717833933,8.3615,165.44,165.37,5.4434]
[1762717834237,2.92,165.43,165.32,38.38710937]
[1762717834736,0.0414549,165.39,165.36,5.48823082]
[1762717836942,2.9614549,165.39,165.36,0.04463082]
[1762717837325,0.0414549,165.39,165.36,0.04463082]
[1762717837831,2.9614549,165.39,165.36,0.04463082]
[1762717838737,2.92,165.37,165.36,0.04463082]
[1762717839035,2.92,165.37,165.29,66.3661]
[1762717839834,2.92,165.36,165.29,66.3661]
[1762717840036,2.92,165.34,165.31,0.04607661]
[1762717843335,0.03899939,165.35,165.31,0.04607661]
[1762717843539,2.95899939,165.35,165.31,0.04607661]
[1762717844133,0.03899939,165.35,165.31,0.04607661]
[1762717844534,0.03899939,165.35,165.33,5.4447]
[1762717844834,2.92,165.43,165.33,1.90845206]
[1762717845037,2.92,165.43,165.29,79.1]
[1762717845038,2.92,165.42,165.29,18.18]
[1762717845232,2.92,165.42,165.29,58.86]
[1762717845635,0.04164762,165.37,165.34,0.04416426]
[1762717845935,2.95880343,165.37,165.34,0.0401673]
[1762717848145,0.03880343,165.37,165.34,0.0401673]
[1762717850544,3.14,165.46,165.35,1.90845206]
[1762717850749,3.14,165.46,165.36,61.0]
[1762717851443,3.14,165.46,165.39,0.04546972]
[1762717851444,0.03844667,165.43,165.39,0.04546972]
[1762717851648,3.17844667,165.43,165.39,0.04546972]
[1762717856050,0.03844667,165.43,165.39,0.04546972]
[1762717857949,0.03844667,165.43,165.41,5.4416]
[1762717858758,3.17844667,165.43,165.39,0.04546972]
[1762717860156,3.14,165.41,165.39,0.04546972]
[1762717861451,3.14,165.4,165.39,0.04546972]
[1762717862652,2.88,165.5,165.39,0.04546972]
[1762717862959,2.88,165.53,165.4,44.8]
[1762717863658,2.88,165.53,165.45,0.04367298]
[1762717863855,0.04238848,165.48,165.45,0.04367298]
[1762717864757,0.04238848,165.48,165.46,5.44]
[1762717865156,0.04238848,165.48,165.45,0.04367298]
[1762717866660,0.04238848,165.48,165.45,5.48397298]
[1762717870664,0.04238848,165.48,165.46,5.4399]
[1762717870966,0.04238848,165.48,165.45,0.04367298]
[1762717870967,2.92238848,165.48,165.45,0.04367298]
[1762717873365,0.04238848,165.48,165.45,0.04367298]
[1762717873957,0.04238848,165.48,165.46,5.4399]
[1762717874768,0.04238848,165.48,165.45,0.04367298]
[1762717876363,0.04238848,165.48,165.46,5.4398]
[1762717880368,0.04238848,165.48,165.46,66.4598]
[1762717880668,0.04238848,165.48,165.46,5.4398]
[1762717880868,0.04238848,165.48,165.46,66.4598]
[1762717884467,2.88,165.55,165.46,61.02]
[1762717884666,2.88,165.55,165.42,1.90180921]
[1762717884667,2.88,165.55,165.47,61.0]
[1762717884964,2.88,165.54,165.48,61.0]
[1762717885562,2.88,165.61,165.5,1.21671365]
[1762717885766,2.88,165.61,165.51,61.08]
[1762717885969,2.88,165.6,165.51,61.08]
[1762717886571,0.04399719,165.57,165.51,61.08]
[1762717886873,2.92399719,165.57,165.54,0.04141916]
[1762717889372,2.88,165.56,165.54,0.04141916]
[1762717890075,8.317,165.56,165.54,0.04141916]
[1762717890271,2.88,165.55,165.47,5.4397]
[1762717890467,2.88,165.55,165.48,44.6]
[1762717890674,2.88,165.52,165.48,44.6]
[1762717891269,2.92100692,165.52,165.48,0.04132938]
[1762717891771,2.88,165.51,165.48,0.04132938]
[1762717893177,3.08,165.5,165.48,0.04132938]
[1762717897978,3.08,165.49,165.48,0.04132938]
[1762717900090,5.47930692,165.52,165.48,0.04132938]
[1762717900091,3.08,165.51,165.48,0.04132938]
[1762717900590,0.04100692,165.52,165.49,5.439]
[1762717900991,0.04100692,165.52,165.5,5.4385]
[1762717903595,0.04100692,165.52,165.48,0.04132938]
[1762717903596,3.12100692,165.52,165.48,0.04132938]
[1762717903797,0.04100692,165.52,165.48,0.04132938]
[1762717905599,3.12100692,165.52,165.48,5.48062938]
[1762717906906,0.04100692,165.52,165.48,0.04132938]
[1762717907206,0.04100692,165.52,165.49,5.4695782]
[1762717907502,0.04100692,165.52,165.5,61.02]
[1762717908296,0.04100692,165.52,165.5,66.4895782]
[1762717908498,0.04100692,165.52,165.5,71.9281782]
[1762717908700,0.04100692,165.52,165.5,66.4586]
[1762717908901,0.04100692,165.52,165.5,6.65501318]
[1762717910199,0.04100692,165.52,165.5,12.12459138]
[1762717911001,0.04100692,165.52,165.5,5.4386]
[1762717911206,0.04100692,165.52,165.5,67.63501318]
[1762717912398,3.05100692,165.52,165.48,5.48082938]
[1762717912602,3.05100692,165.52,165.48,63.82082938]
[1762717913503,3.05100692,165.52,165.48,66.44082938]
[1762717913805,0.04100692,165.52,165.49,5.439]
[1762717914195,0.04100692,165.52,165.49,1.21641318]
[1762717914809,0.04100692,165.52,165.5,10.9081782]
[1762717915304,10.8666,165.67,165.54,5.4374]
[1762717915512,3.01,165.61,165.54,60.96]
[1762717916309,0.0417189,165.59,165.56,0.04435411]
[1762717916696,3.0517189,165.59,165.56,0.04435411]
[1762717922706,0.0417189,165.59,165.56,0.04435411]
[1762717923415,0.0417189,165.59,165.57,5.4364]
[1762717924918,3.1317189,165.59,165.57,5.4364]
[1762717925114,3.1317189,165.59,165.56,0.04435411]
[1762717925612,3.1317189,165.59,165.56,5.48105411]
[1762717927923,0.0417189,165.59,165.57,5.4364]
[1762717928124,0.0417189,165.59,165.56,0.04435411]
[1762717930117,0.0417189,165.59,165.56,5.48105411]
[1762717931221,0.0417189,165.59,165.57,5.4363]
[1762717932620,3.09,165.58,165.56,0.04435411]
[1762717934023,0.0417189,165.59,165.56,0.04435411]
[1762717934627,0.0417189,165.59,165.56,5.48105411]
[1762717934828,0.0417189,165.59,165.56,0.04435411]
[1762717935322,0.0417189,165.59,165.57,5.4364]
[1762717938724,0.0417189,165.59,165.56,0.04435411]
[1762717940028,0.0417189,165.59,165.57,5.4364]
[1762717942830,0.0417189,165.59,165.56,0.04435411]
[1762717943631,0.0417189,165.59,165.56,5.48115411]
[1762717945028,0.0417189,165.59,165.57,5.4364]
[1762717945224,3.09,165.65,165.56,1.26007351]
[1762717945425,3.09,165.65,165.62,5.4348]
[1762717945626,3.09,165.65,165.63,60.74]
[1762717945827,3.09,165.69,165.63,60.74]
[1762717946024,3.09,165.68,165.63,60.74]
[1762717946225,0.04576823,165.67,165.64,0.03961436]
[1762717947121,0.04576823,165.67,165.64,5.47371436]
[1762717947332,3.09,165.8,165.66,1.89821511]
[1762717947631,3.09,165.8,165.73,5.4309]
[1762717947832,3.09,165.8,165.73,7.32911511]
[1762717948024,3.09,165.8,165.74,44.46]
[1762717948223,3.09,165.8,165.75,60.82]
[1762717948529,3.12910534,165.79,165.76,60.86327543]
[1762717948733,3.13000585,165.79,165.76,0.04339412]
[1762717949130,3.13000585,165.79,165.76,41.48339412]
[1762717949731,3.13000585,165.79,165.76,0.04339412]
[1762717952026,3.13000585,165.79,165.76,60.80339412]
[1762717952232,0.04000585,165.79,165.76,60.80339412]
[1762717952433,0.04000585,165.79,165.77,60.76]
[1762717952636,0.04000585,165.79,165.78,60.76]
[1762717952838,3.16,165.82,165.78,60.76]
[1762717953137,3.16,165.82,165.76,5.47339412]
[1762717953336,5.4267,165.88,165.78,1.89821511]
[1762717953636,3.16,165.87,165.78,1.89821511]
[1762717953836,3.16,165.87,165.81,0.04233218]
[1762717954726,1.04963127,165.92,165.81,0.04233218]
[1762717954927,1.04963127,165.92,165.77,1.89821511]
[1762717954928,3.16,165.85,165.79,18.86]
[1762717955132,3.16,165.85,165.8,0.03958114]
[1762717955732,5.4278,165.84,165.8,0.03958114]
[1762717955931,3.16,165.83,165.8,0.03958114]
[1762717959440,3.16,165.87,165.8,0.03958114]
[1762717960137,3.16,165.86,165.8,0.03958114]
[1762717961546,8.5872,165.86,165.8,0.03958114]
[1762717962040,3.16,165.85,165.8,0.03958114]
[1762717963029,3.16,165.84,165.8,0.03958114]
[1762717963937,3.16,165.83,165.8,0.03958114]
[1762717964136,3.16,165.83,165.8,0.03987244]
[1762717969151,2.87,165.81,165.74,17.75388053]
[1762717969446,2.87,165.81,165.69,2.11014511]
[1762717969636,2.87,165.78,165.7,5.432]
[1762717970238,2.87,165.75,165.72,0.03931339]
[1762717974850,2.87,165.75,165.7,0.22577]
[1762717975238,2.87,165.72,165.7,0.22577]
[1762717975843,2.87,165.71,165.7,0.22577]
[1762717981453,2.87,165.71,165.55,5.49377074]
[1762717981454,2.87,165.71,165.61,60.7]
[1762717982251,3.02,165.67,165.64,0.03823916]
[1762717982448,3.02,165.67,165.64,0.03952068]
[1762717998956,0.04274047,165.68,165.64,1.93773579]
[1762717999162,3.02,165.74,165.64,1.93773579]
[1762717999359,3.02,165.74,165.63,1.89821511]
[1762717999564,3.02,165.74,165.63,47.24]
[1762718000156,3.02,165.69,165.67,0.04627601]
[1762718000360,3.02,165.69,165.66,0.04561905]
[1762718000565,3.05964326,165.69,165.66,0.04561905]
[1762718000966,8.49234326,165.69,165.66,0.04561905]
[1762718001161,3.02,165.68,165.66,0.04561905]
[1762718002768,0.03964326,165.69,165.66,0.04561905]
[1762718003662,0.03964326,165.69,165.67,5.4331]
[1762718005463,3.02,165.74,165.71,5.4319]
[1762718006270,3.02,165.74,165.72,5.4315]
[1762718006465,3.02,165.74,165.71,0.03858809]
[1762718006661,3.06120235,165.74,165.71,0.03858809]
[1762718007870,3.06120235,165.74,165.71,5.47038809]
[1762718009272,3.06120235,165.74,165.72,5.4315]
[1762718009972,3.06120235,165.74,165.71,0.03858809]
[1762718013172,2.94,165.73,165.71,0.03858809]
[1762718015874,2.94,165.73,165.68,5.4327]
[1762718016074,2.94,165.73,165.66,18.43925402]
[1762718016367,2.94,165.73,165.64,5.49377074]
[1762718016567,2.94,165.73,165.68,5.4328]
[1762718016777,2.94,165.76,165.66,6.70732891]
[1762718016977,2.94,165.72,165.69,0.03822049]
[1762718017173,2.98539833,165.72,165.69,0.04167489]
[1762718017481,0.04539833,165.72,165.69,0.04167489]
[1762718018778,0.04539833,165.72,165.7,5.4321]
[1762718021687,0.04539833,165.72,165.7,10.92587074]
[1762718021985,0.04539833,165.72,165.7,5.4321]
[1762718025887,2.98539833,165.72,165.7,5.4321]
[1762718027984,0.04539833,165.72,165.7,5.4321]
[1762718028184,2.89539833,165.72,165.7,5.4321]
[1762718029087,0.04539833,165.72,165.7,5.4321]
[1762718031591,2.89539833,165.72,165.7,5.4321]
[1762718032984,0.04539833,165.72,165.7,5.4321]
[1762718042392,0.04539833,165.72,165.71,60.68]
[1762718042695,2.91539833,165.72,165.7,66.1121]
[1762718043600,0.04539833,165.72,165.7,66.1121]
[1762718046599,0.04539833,165.72,165.7,71.60587074]
[1762718047302,2.87,165.78,165.7,68.10344833]
[1762718047505,2.87,165.78,165.72,5.50683065]
[1762718047798,2.87,165.78,165.73,5.50683065]
[1762718047990,2.87,165.78,165.74,60.68]
[1762718048191,0.04221068,165.78,165.74,60.7245401]
[1762718048391,2.91221068,165.78,165.74,66.23137075]
[1762718048598,2.91221068,165.78,165.74,60.7245401]
[1762718049904,2.91221068,165.78,165.74,66.23137075]
[1762718050202,2.91221068,165.78,165.74,71.66207075]
[1762718050705,2.91221068,165.78,165.74,66.23137075]
[1762718050905,2.91221068,165.78,165.74,60.7245401]
[1762718051105,2.91221068,165.78,165.74,71.66217075]
[1762718051907,2.91221068,165.78,165.74,66.1553401]
[1762718054006,2.91221068,165.78,165.74,60.7245401]
[1762718054301,2.91221068,165.78,165.74,0.0445401]
[1762718054508,2.91221068,165.78,165.74,60.7045401]
[1762718055598,4.08355817,165.77,165.74,0.0445401]
[1762718055804,2.87,165.76,165.74,0.0445401]
[1762718057004,8.3004,165.76,165.74,0.0445401]
[1762718057201,2.87,165.75,165.74,0.0445401]
[1762718058514,2.87,165.76,165.74,0.0445401]
[1762718058707,2.91221068,165.78,165.74,0.0445401]
[1762718059011,0.04221068,165.78,165.75,66.0905]
[1762718059602,2.91221068,165.78,165.75,60.66]
[1762718061408,2.91221068,165.78,165.74,0.0445401]
[1762718061709,2.91221068,165.78,165.74,60.7045401]
[1762718062511,2.91221068,165.78,165.74,0.0445401]
[1762718063013,2.87,165.77,165.74,0.0445401]
[1762718064910,2.87,165.75,165.74,0.0445401]
[1762718065407,2.87,165.77,165.74,0.0445401]
[1762718065714,0.04221068,165.78,165.75,60.66]
[1762718066414,2.91221068,165.78,165.75,60.66]
[1762718067113,0.04221068,165.78,165.75,61.87355817]
[1762718067413,2.91221068,165.78,165.75,61.87355817]
[1762718067616,2.91221068,165.78,165.75,60.66]
[1762718068004,0.04221068,165.78,165.75,60.66]
[1762718070907,2.91221068,165.78,165.75,60.66]
[1762718072011,2.91221068,165.78,165.76,60.64]
[1762718074015,0.04221068,165.78,165.76,60.64]
[1762718074328,2.96221068,165.78,165.74,0.0445401]
[1762718079725,2.92,165.75,165.74,0.0445401]